fUSD/lending_fUSD_20260527
["ID","MTS","AMOUNT","RATE_DAILY","PERIOD"]
[423125545,1779868275000,-300360.03208,0.00039,2]
[423125556,1779868275000,-605.4683001,0.00039115,2]
[423125548,1779868275000,-500.0,0.00039011,30]
[423125546,1779868275000,-1260000.0,0.00039,2]
[423125554,1779868275000,-199.95,0.0003908,105]
[423125555,1779868275000,-573.31620361,0.00039083,2]
[423125550,1779868275000,-500.0,0.00039011,30]
[423125547,1779868275000,-500.0,0.00039011,30]
[423125569,1779868275000,-272.48696688,0.00039289,2]
[423125578,1779868275000,-500.0,0.00039328,2]
[423125573,1779868275000,-325.3829,0.000393,60]
[423125602,1779868275000,-403.67679024,0.00039334,2]
[423125603,1779868275000,-403.67679024,0.00039334,2]
[423125594,1779868275000,-500.0,0.00039333,2]
[423125599,1779868275000,-500.0,0.00039333,2]
[423125596,1779868275000,-500.0,0.00039333,2]
[423125595,1779868275000,-500.0,0.00039333,2]
[423125592,1779868275000,-500.0,0.00039332,2]
[423125601,1779868275000,-555.24,0.00039333,2]
[423125600,1779868275000,-500.0,0.00039333,2]
[423125593,1779868275000,-229.41707256,0.00039333,30]
[423125605,1779868275000,-236088.94774036,0.00039334,2]
[423125606,1779868275000,-208361.41967031,0.00039334,2]
[423125604,1779868275000,-403.67679024,0.00039334,2]
[423125571,1779868275000,-4336.65,0.000393,2]
[423125597,1779868275000,-500.0,0.00039333,2]
[423125586,1779868275000,-152.0,0.0003933,120]
[423125598,1779868275000,-500.0,0.00039333,2]
[423125589,1779868275000,-157.0,0.0003933,120]
[423125575,1779868275000,-150.23,0.0003932,30]
[423125574,1779868275000,-150.0,0.00039315,30]
[423125579,1779868275000,-500.0,0.00039328,2]
[423125576,1779868275000,-83075.18678753,0.0003932,30]
[423125577,1779868275000,-500.0,0.00039328,2]
[423125572,1779868275000,-155.0,0.000393,120]
[423125582,1779868275000,-166.0,0.0003933,120]
[423125581,1779868275000,-154.0,0.0003933,120]
[423125583,1779868275000,-162.0,0.0003933,120]
[423125584,1779868275000,-165.0,0.0003933,120]
[423125588,1779868275000,-153.0,0.0003933,120]
[423125590,1779868275000,-256.0,0.00039332,7]
[423125585,1779868275000,-152.0,0.0003933,120]
[423125591,1779868275000,-500.0,0.00039332,2]
[423125587,1779868275000,-152.0,0.0003933,120]
[423125626,1779869148000,-151.0,0.000109,2]
[423125631,1779869225000,-141.0001304,0.000111,2]
[423125630,1779869225000,-151.0,0.00011,2]
[423125629,1779869225000,-250.0,0.0001095,2]
[423125632,1779869257000,182.34,0.00025903,120]
[423125646,1779869345000,-300.0,0.00016,2]
[423125645,1779869345000,-200.0,0.0001564,2]
[423125644,1779869345000,-250.0,0.00015361,2]
[423125642,1779869345000,-250.0,0.00014,2]
[423125643,1779869345000,-157.78,0.00014318,2]
[423125641,1779869345000,-250.0,0.0001221,2]
[423125640,1779869345000,-250.0,0.0001199,2]
[423125638,1779869345000,-151.0,0.000114,2]
[423125637,1779869345000,-129.185447,0.000113,2]
[423125636,1779869345000,-21.814553,0.000113,2]
[423125634,1779869345000,-250.0,0.000111,2]
[423125647,1779869345000,-300.0,0.00018942,2]
[423125635,1779869345000,-151.0,0.000112,2]
[423125633,1779869345000,-9.9998696,0.000111,2]
[423125639,1779869345000,-150.0,0.00011772,2]
[423125648,1779869345000,-1200.0,0.00020029,2]
[423125664,1779869345000,-278.77565213,0.00026,2]
[423125650,1779869345000,-218.80995885,0.00021855,2]
[423125665,1779869345000,-166.37609198,0.00026,2]
[423125666,1779869345000,-191.21061057,0.00026,2]
[423125663,1779869345000,-215.46156935,0.00025955,2]
[423125649,1779869345000,-420.0,0.00020648,2]
[423125662,1779869345000,-436.87,0.00025786,2]
[423125660,1779869345000,-228.71,0.00024658,2]
[423125659,1779869345000,-766.0,0.00024535,2]
[423125661,1779869345000,-524.0,0.00025082,2]
[423125657,1779869345000,-5118.17023891,0.00024344,2]
[423125658,1779869345000,-883.0,0.00024344,2]
[423125655,1779869345000,-436.87,0.00024174,2]
[423125654,1779869345000,-2351.0,0.00023975,2]
[423125653,1779869345000,-293.45,0.00023201,2]
[423125651,1779869345000,-1680.0,0.00021913,2]
[423125652,1779869345000,-587.0,0.00022508,2]
[423125656,1779869345000,-1000.0,0.00024342,2]
[423125672,1779869346000,-2000.0,0.00026364,2]
[423125673,1779869346000,-150.0,0.00026398,2]
[423125670,1779869346000,-191.21061057,0.000262,2]
[423125667,1779869346000,-1000.0,0.00026,2]
[423125668,1779869346000,-278.77565213,0.000262,2]
[423125669,1779869346000,-166.37609198,0.000262,2]
[423125674,1779869346000,-828.89,0.00026494,2]
[423125671,1779869346000,-1544.0,0.00026231,2]
[423125675,1779869346000,-278.77565213,0.000265,2]
[423125677,1779869346000,-494.33,0.00026506,2]
[423125676,1779869346000,-166.37609198,0.000265,2]
[423125684,1779869346000,-500.0,0.00027,2]
[423125683,1779869346000,-278.77565213,0.00027,2]
[423125681,1779869346000,-166.37609198,0.000267,2]
[423125685,1779869346000,-193.98327468,0.0002708,2]
[423125680,1779869346000,-278.77565213,0.000267,2]
[423125679,1779869346000,-2962.35,0.00026596,2]
[423125678,1779869346000,-256.72,0.00026596,2]
[423125682,1779869346000,-155.0,0.000267,7]
[423125688,1779869353000,-59.57885668,0.00027239,2]
[423125687,1779869353000,-200.0,0.0002708,2]
[423125686,1779869353000,-6.01672532,0.0002708,2]
[423125689,1779869357000,-182.3465224,0.00027239,2]
[423125720,1779869432000,-166.66,0.00027799,30]
[423125721,1779869432000,-6067.40275424,0.000278,2]
[423125719,1779869432000,-150.0,0.0002734,2]
[423125722,1779869432000,-1659.0,0.00027917,2]
[423125723,1779869432000,-7248.0,0.00027972,2]
[423125724,1779869432000,-410.0,0.00028027,2]
[423125727,1779869432000,-213.11728104,0.00028144,2]
[423125726,1779869432000,-410.0,0.00028139,2]
[423125733,1779869432000,-174.38,0.00028291,30]
[423125717,1779869432000,-1674.78171894,0.00027239,2]
[423125725,1779869432000,-231.0,0.00028083,2]
[423125716,1779869432000,-570.0,0.00027238,2]
[423125708,1779869432000,-185.27268104,0.000262,2]
[423125712,1779869432000,-1575.39530292,0.000265,2]
[423125715,1779869432000,-1575.39530292,0.00027,2]
[423125718,1779869432000,-150.88,0.00027271,2]
[423125711,1779869432000,-185.27268104,0.000265,2]
[423125732,1779869432000,-173.78,0.00028282,30]
[423125709,1779869432000,-1575.39530292,0.000262,2]
[423125710,1779869432000,-173.24134509,0.0002646,2]
[423125706,1779869432000,-192.093504,0.0002595,2]
[423125705,1779869432000,-1575.39530292,0.000259,2]
[423125704,1779869432000,-185.27268104,0.000259,2]
[423125707,1779869432000,-250.0,0.0002605,2]
[423125714,1779869432000,-1575.39530292,0.000267,2]
[423125730,1779869432000,-173.91,0.00028237,30]
[423125713,1779869432000,-185.27268104,0.000267,2]
[423125728,1779869432000,-181.12,0.00028232,30]
[423125729,1779869432000,-181.12,0.00028236,30]
[423125757,1779869432000,-316.75050505,0.00029,2]
[423125756,1779869432000,-174.39,0.00029,7]
[423125758,1779869432000,-931.93876256,0.00029025,2]
[423125755,1779869432000,-174.99,0.00029,7]
[423125753,1779869432000,-196.56334483,0.00029,2]
[423125749,1779869432000,-1210.0,0.00029,2]
[423125750,1779869432000,-209.49,0.00029,2]
[423125751,1779869432000,-209.49,0.00029,2]
[423125752,1779869432000,-209.48,0.00029,2]
[423125748,1779869432000,-209.49,0.00029,2]
[423125740,1779869432000,-173.98,0.00028651,7]
[423125743,1779869432000,-214.0,0.00029,2]
[423125754,1779869432000,-209.48,0.00029,2]
[423125744,1779869432000,-2500.0,0.00029,2]
[423125737,1779869432000,-201.0,0.000285,2]
[423125747,1779869432000,-209.49,0.00029,2]
[423125739,1779869432000,-157.78,0.00028636,2]
[423125736,1779869432000,-250.0,0.0002849,2]
[423125742,1779869432000,-166.66,0.00028969,30]
[423125741,1779869432000,-173.91,0.00028948,7]
[423125738,1779869432000,-173.95,0.00028621,7]
[423125746,1779869432000,-150.0,0.00029,2]
[423125731,1779869432000,-173.95,0.00028242,30]
[423125745,1779869432000,-166.15,0.00029,2]
[423125735,1779869432000,-166.66,0.00028384,30]
[423125734,1779869432000,-152.47,0.00028315,2]
[423125797,1779869434000,-495.59833933,0.00031345,10]
[423125784,1779869434000,-2176.92166067,0.00031345,10]
[423125783,1779869434000,-3207.02,0.00031345,10]
[423125808,1779869434000,-500.0,0.00031353,2]
[423125777,1779869434000,-1301.28,0.000312,2]
[423125805,1779869434000,-500.0,0.00031353,2]
[423125778,1779869434000,-192.093504,0.00031245,2]
[423125782,1779869434000,-430.04872724,0.00031345,2]
[423125798,1779869434000,-500.0,0.00031353,2]
[423125807,1779869434000,-500.0,0.00031353,2]
[423125799,1779869434000,-150.14587665,0.00031353,2]
[423125802,1779869434000,-500.0,0.00031353,2]
[423125800,1779869434000,-500.0,0.00031353,2]
[423125801,1779869434000,-500.0,0.00031353,2]
[423125803,1779869434000,-500.0,0.00031353,2]
[423125804,1779869434000,-500.0,0.00031353,2]
[423125776,1779869434000,-406.15,0.0003113,2]
[423125806,1779869434000,-500.0,0.00031353,2]
[423125779,1779869434000,-150.0,0.0003125,2]
[423125765,1779869434000,-150.0,0.000294,2]
[423125775,1779869434000,-175.6,0.00031017,2]
[423125809,1779869434000,-500.0,0.00031353,2]
[423125760,1779869434000,-173.93,0.00028182,30]
[423125759,1779869434000,-207.33,0.00028177,30]
[423125763,1779869434000,-252.67,0.000291,2]
[423125762,1779869434000,-1000.0,0.00029047,120]
[423125761,1779869434000,-5185.25253855,0.00029025,2]
[423125764,1779869434000,-199.97,0.000291,2]
[423125767,1779869434000,-166.66,0.00029555,30]
[423125768,1779869434000,-406.15,0.00029648,2]
[423125766,1779869434000,-9827.14,0.00029461,2]
[423125780,1779869434000,-4005.09994066,0.00031325,2]
[423125770,1779869434000,-166.66,0.0003014,30]
[423125771,1779869434000,-182.34,0.0003022,120]
[423125769,1779869434000,-2000.0,0.0002966,120]
[423125772,1779869434000,-406.15,0.00030389,2]
[423125781,1779869434000,-2769.1,0.00031327,2]
[423125773,1779869434000,-199.96,0.00030411,120]
[423125774,1779869434000,-166.66,0.00030725,30]
[423125811,1779869434000,-500.0,0.00031353,2]
[423125825,1779869434000,-90421.75321076,0.00031354,2]
[423125815,1779869434000,-500.0,0.00031353,2]
[423125836,1779869434000,-406.15,0.00031871,2]
[423125838,1779869434000,-306.49,0.00031978,120]
[423125831,1779869434000,-3216.64933336,0.00031495,2]
[423125833,1779869434000,-2500.0,0.00031504,120]
[423125847,1779869434000,-1245.72861074,0.00033,120]
[423125846,1779869434000,-4005.09994066,0.00032965,2]
[423125848,1779869434000,-199.78554929,0.00033353,2]
[423125849,1779869434000,-260.84412212,0.0003355,67]
[423125839,1779869434000,-1245.72861074,0.00032,120]
[423125840,1779869434000,-4005.09994066,0.00032145,2]
[423125845,1779869434000,-2000.0,0.00032956,120]
[423125842,1779869434000,-955.557,0.00032297,32]
[423125844,1779869434000,-166.75,0.0003284,2]
[423125843,1779869434000,-406.15,0.00032612,2]
[423125841,1779869434000,-188.584,0.00032297,32]
[423125851,1779869434000,-4005.09994066,0.00033786,2]
[423125810,1779869434000,-500.0,0.00031353,2]
[423125832,1779869434000,-1783.35066664,0.00031495,2]
[423125830,1779869434000,-213.89808373,0.00031443,2]
[423125850,1779869434000,-260.84412212,0.0003355,67]
[423125834,1779869434000,-165.18,0.00031594,2]
[423125813,1779869434000,-587.34545473,0.00031353,2]
[423125835,1779869434000,-278.6551873,0.00031838,2]
[423125812,1779869434000,-242.55337747,0.00031353,2]
[423125814,1779869434000,-500.0,0.00031353,2]
[423125817,1779869434000,-500.0,0.00031353,2]
[423125827,1779869434000,-5970.93,0.00031426,2]
[423125824,1779869434000,-378.71365915,0.00031354,2]
[423125823,1779869434000,-292.97700002,0.00031354,2]
[423125818,1779869434000,-500.0,0.00031353,2]
[423125816,1779869434000,-500.0,0.00031353,2]
[423125820,1779869434000,-5271.54010103,0.00031354,2]
[423125821,1779869434000,-797.59445327,0.00031354,2]
[423125822,1779869434000,-765.71157577,0.00031354,2]
[423125819,1779869434000,-500.0,0.00031353,2]
[423125826,1779869434000,-9999.99,0.00031426,2]
[423125828,1779869434000,-9999.99,0.00031426,2]
[423125829,1779869434000,-150.99,0.00031426,2]
[423125837,1779869434000,-500.0,0.000319,2]
[423125877,1779869435000,-431.50561079,0.00035445,2]
[423125882,1779869435000,-727.07827244,0.00035445,2]
[423125892,1779869435000,-344.45437934,0.00035445,2]
[423125884,1779869435000,-300.0,0.00035445,2]
[423125880,1779869435000,-894.65434383,0.00035445,2]
[423125881,1779869435000,-300.0,0.00035445,2]
[423125878,1779869435000,-96.97766092,0.00035445,2]
[423125883,1779869435000,-302.21937029,0.00035445,2]
[423125879,1779869435000,-1068.40163352,0.00035445,2]
[423125887,1779869435000,-300.0,0.00035445,2]
[423125898,1779869435000,-950.32029804,0.00035445,2]
[423125885,1779869435000,-300.99795142,0.00035445,2]
[423125888,1779869435000,-300.0,0.00035445,2]
[423125890,1779869435000,-300.0,0.00035445,2]
[423125889,1779869435000,-492.15481533,0.00035445,2]
[423125891,1779869435000,-1263.96825586,0.00035445,2]
[423125893,1779869435000,-527.62572404,0.00035445,2]
[423125900,1779869435000,-1148.83589152,0.00035445,2]
[423125897,1779869435000,-865.6208675,0.00035445,2]
[423125876,1779869435000,-300.0,0.00035445,2]
[423125886,1779869435000,-300.0,0.00035445,2]
[423125875,1779869435000,-300.0,0.00035445,2]
[423125858,1779869435000,-150.0,0.00034422,7]
[423125873,1779869435000,-300.0,0.00035445,2]
[423125894,1779869435000,-463.6799933,0.00035445,2]
[423125853,1779869435000,-1000.0,0.00033989,2]
[423125854,1779869435000,-150.0,0.00034422,7]
[423125856,1779869435000,-150.0,0.00034422,7]
[423125862,1779869435000,-182.34,0.00034537,120]
[423125852,1779869435000,-1245.72861074,0.000339,120]
[423125863,1779869435000,-500.0,0.0003457,120]
[423125857,1779869435000,-163.26368969,0.00034422,7]
[423125855,1779869435000,-150.0,0.00034422,7]
[423125860,1779869435000,-150.0,0.00034422,7]
[423125859,1779869435000,-150.0,0.00034422,7]
[423125861,1779869435000,-200.0,0.00034434,15]
[423125864,1779869435000,-500.0,0.0003457,120]
[423125871,1779869435000,-476.46174932,0.00035345,2]
[423125868,1779869435000,-150.88,0.00034668,120]
[423125872,1779869435000,-4005.09994066,0.00035426,2]
[423125869,1779869435000,-1245.72861074,0.00035,120]
[423125866,1779869435000,-4005.09994066,0.00034606,2]
[423125865,1779869435000,-500.0,0.0003457,120]
[423125867,1779869435000,-166.75,0.00034646,2]
[423125870,1779869435000,-150.0,0.00035,4]
[423125874,1779869435000,-399.15379367,0.00035445,2]
[423125896,1779869435000,-300.0,0.00035445,2]
[423125937,1779869435000,-1068.40163352,0.00035445,2]
[423125895,1779869435000,-300.0,0.00035445,2]
[423125929,1779869435000,-12.82762982,0.00035445,2]
[423125928,1779869435000,-300.0,0.00035445,2]
[423125926,1779869435000,-300.0,0.00035445,2]
[423125931,1779869435000,-605.31118564,0.00035445,2]
[423125936,1779869435000,-528.48327171,0.00035445,2]
[423125934,1779869435000,-300.0,0.00035445,2]
[423125930,1779869435000,-287.17237018,0.00035445,2]
[423125933,1779869435000,-300.0,0.00035445,2]
[423125932,1779869435000,-300.0,0.00035445,2]
[423125922,1779869435000,-300.0,0.00035445,2]
[423125935,1779869435000,-300.0,0.00035445,2]
[423125941,1779869435000,-300.0,0.00035445,2]
[423125944,1779869435000,-103.87853353,0.00035445,2]
[423125939,1779869435000,-727.07827244,0.00035445,2]
[423125938,1779869435000,-894.65434383,0.00035445,2]
[423125940,1779869435000,-302.21937029,0.00035445,2]
[423125943,1779869435000,-197.11941789,0.00035445,2]
[423125945,1779869435000,-300.0,0.00035445,2]
[423125946,1779869435000,-234.46200373,0.00035445,2]
[423125902,1779869435000,-300.00000001,0.00035445,2]
[423125942,1779869435000,-300.0,0.00035445,2]
[423125921,1779869435000,-300.0,0.00035445,2]
[423125927,1779869435000,-493.38669858,0.00035445,2]
[423125917,1779869435000,-300.0,0.00035445,2]
[423125899,1779869435000,-300.09384644,0.00035445,2]
[423125925,1779869435000,-300.0,0.00035445,2]
[423125903,1779869435000,-594.79850986,0.00035445,2]
[423125901,1779869435000,-310.02493426,0.00035445,2]
[423125905,1779869435000,-464.48677942,0.00035445,2]
[423125904,1779869435000,-300.0,0.00035445,2]
[423125907,1779869435000,-578.28315025,0.00035445,2]
[423125913,1779869435000,-310.28230408,0.00035445,2]
[423125911,1779869435000,-300.0,0.00035445,2]
[423125908,1779869435000,-452.52893397,0.00035445,2]
[423125906,1779869435000,-300.0,0.00035445,2]
[423125910,1779869435000,-300.0,0.00035445,2]
[423125914,1779869435000,-300.78061735,0.00035445,2]
[423125912,1779869435000,-484.76763572,0.00035445,2]
[423125916,1779869435000,-300.0,0.00035445,2]
[423125915,1779869435000,-300.0,0.00035445,2]
[423125918,1779869435000,-1096.2926835,0.00035445,2]
[423125923,1779869435000,-300.0,0.00035445,2]
[423125919,1779869435000,-300.0,0.00035445,2]
[423125909,1779869435000,-300.0,0.00035445,2]
[423125924,1779869435000,-307.08549401,0.00035445,2]
[423125920,1779869435000,-300.0,0.00035445,2]
[423125973,1779869438000,-729.59048462,0.00035445,2]
[423125966,1779869438000,-300.00000001,0.00035445,2]
[423125970,1779869438000,-300.09384644,0.00035445,2]
[423125964,1779869438000,-527.62572404,0.00035445,2]
[423125967,1779869438000,-300.84082029,0.00035445,2]
[423125971,1779869438000,-1148.83589152,0.00035445,2]
[423125969,1779869438000,-950.32029804,0.00035445,2]
[423125968,1779869438000,-865.6208675,0.00035445,2]
[423125972,1779869438000,-310.02493426,0.00035445,2]
[423125962,1779869438000,-196.71889179,0.00035445,2]
[423125965,1779869438000,-300.0,0.00035445,2]
[423125963,1779869438000,-344.45437934,0.00035445,2]
[423125955,1779869438000,-137.99206883,0.00035445,2]
[423125961,1779869438000,-1067.24936407,0.00035445,2]
[423125959,1779869438000,-166.39155611,0.00035445,2]
[423125957,1779869438000,-300.0,0.00035445,2]
[423125958,1779869438000,-39.79323606,0.00035445,2]
[423125956,1779869438000,-381.11698547,0.00035445,2]
[423125950,1779869438000,-173.93,0.00028591,7]
[423125954,1779869438000,-65.53799627,0.00035445,2]
[423125953,1779869438000,-99.44378608,0.00029,2]
[423125952,1779869438000,-74.49621392,0.00029,2]
[423125951,1779869438000,-174.46,0.00029,7]
[423125949,1779869438000,-174.46,0.00028223,30]
[423125974,1779869438000,-300.0,0.00035445,2]
[423125960,1779869438000,-93.81520783,0.00035445,2]
[423125977,1779869438000,-464.48677942,0.00035445,2]
[423125996,1779869438000,-56141.0,0.000364,30]
[423125978,1779869438000,-300.0,0.00035445,2]
[423126018,1779869438000,-5545.07192733,0.00036547,30]
[423126017,1779869438000,-1049.53799999,0.00036547,30]
[423126016,1779869438000,-1733.58218583,0.00036547,30]
[423126013,1779869438000,-21526.82891913,0.00036547,30]
[423125999,1779869438000,-4004.91069956,0.00036547,30]
[423125994,1779869438000,-150.205,0.00036354,2]
[423125993,1779869438000,-150.501,0.00036354,2]
[423125997,1779869438000,-166.75,0.00036453,2]
[423125992,1779869438000,-150.11,0.00036354,2]
[423125995,1779869438000,-155.62421082,0.00036399,60]
[423125991,1779869438000,-402.81,0.00036273,10]
[423125980,1779869438000,-452.52893397,0.00035445,2]
[423125990,1779869438000,-2000.0,0.00036251,120]
[423125987,1779869438000,-1245.72861074,0.00036,120]
[423125998,1779869438000,-476.46174928,0.00036471,2]
[423125988,1779869438000,-524.0,0.00036066,13]
[423125985,1779869438000,-476.46174928,0.00035908,2]
[423125986,1779869438000,-306.49,0.00035975,120]
[423125983,1779869438000,-414.59343925,0.00035554,81]
[423125982,1779869438000,-414.59343925,0.00035554,81]
[423125981,1779869438000,-300.0,0.00035445,2]
[423125984,1779869438000,-152.80999999,0.00035616,60]
[423125976,1779869438000,-300.0,0.00035445,2]
[423125979,1779869438000,-578.28315025,0.00035445,2]
[423125975,1779869438000,-594.79850986,0.00035445,2]
[423125989,1779869438000,-4005.09994066,0.00036246,2]
[423126021,1779869439000,-15648.16585792,0.00036547,30]
[423126020,1779869439000,-7801.93599774,0.00036547,30]
[423126019,1779869439000,-2034.9441111,0.00036547,30]
[423126022,1779869439000,-290.84887371,0.00036547,30]
[423126024,1779869439000,-673.39682784,0.00036547,30]
[423126023,1779869439000,-592.58807445,0.00036547,30]
[423126025,1779869439000,-1251.59733279,0.00036547,30]
[423126032,1779869440000,-293907.90111592,0.00036547,30]
[423126031,1779869440000,-6088.99348685,0.00036547,30]
[423126029,1779869440000,-11753.80443313,0.00036547,30]
[423126030,1779869440000,-20886.20208002,0.00036547,30]
[423126027,1779869440000,-300.0,0.00035445,2]
[423126028,1779869440000,-375.84091934,0.00036547,30]
[423126057,1779869443000,-123.3291243,0.00035445,2]
[423126065,1779869444000,-70486.43396117,0.00036547,30]
[423126064,1779869444000,-2375.86,0.00036537,10]
[423126063,1779869444000,-300.0,0.00035445,2]
[423126066,1779869444000,-6841.17496801,0.00036547,30]
[423126062,1779869444000,-176.6708757,0.00035445,2]
[423126061,1779869444000,-518.0,0.00025082,2]
[423126086,1779869446000,-277.67433642,0.00036547,30]
[423126085,1779869446000,-23892.87196532,0.00036547,30]
[423126084,1779869446000,-484.76763572,0.00035445,2]
[423126087,1779869447000,-3194.48664788,0.00036547,30]
[423126172,1779869894000,-643.1721757,0.00011966,2]
[423126174,1779870018000,-178.92,0.00013699,2]
[423126175,1779870018000,-227.83,0.00013699,2]
[423126177,1779870018000,-158.22,0.00013699,2]
[423126176,1779870018000,-189.86,0.00013699,2]
[423126178,1779870018000,-545.17,0.00013699,2]
[423126179,1779870034000,2500.0,0.00025186,120]
[423126181,1779870085000,580.73,0.00026322,120]
[423126186,1779870151000,-268.99522453,0.000135,2]
[423126187,1779870167000,-731.00477547,0.000135,2]
[423126188,1779870210000,-1570.13197594,0.00013599,2]
[423126190,1779870211000,-1200.0,0.00013989,2]
[423126193,1779870211000,-210.04695001,0.00013855,2]
[423126189,1779870211000,-245.93,0.00013699,2]
[423126194,1779870211000,-300.0,0.00013989,2]
[423126195,1779870211000,-760.08502593,0.0001399,2]
[423126192,1779870211000,-300.0,0.00013855,2]
[423126191,1779870211000,-124.20197594,0.0001399,2]
[423126196,1779870212000,-1570.13197594,0.0001399,2]
[423126197,1779870274000,-150.0,0.00013191,2]
[423126198,1779870285000,-161.540522,0.000137,2]
[423126226,1779870400000,-437.31266527,0.00012924,2]
[423126225,1779870400000,-500.0,0.00012898,2]
[423126224,1779870400000,-151.0,0.000128,2]
[423126227,1779870427000,-562.68733473,0.00012924,2]
[423126228,1779870427000,-31.61291064,0.00012978,2]
[423126230,1779870451000,-350.6141346,0.00012881,2]
[423126233,1779870545000,-1897.74,0.00012867,2]
[423126235,1779870545000,-189.4577026,0.00012881,2]
[423126234,1779870545000,-1750.3858654,0.00012881,2]
[423126240,1779870546000,-150.17626136,0.00013488,2]
[423126236,1779870546000,-7285.9122974,0.00012881,2]
[423126237,1779870546000,-5840.26708936,0.00012978,2]
[423126238,1779870546000,-165.37704916,0.00013387,2]
[423126239,1779870546000,-150.0,0.00013488,2]
[423126241,1779870546000,-150.0,0.00013488,2]
[423126242,1779870546000,-150.0,0.00013488,2]
[423126243,1779870546000,-150.0,0.00013488,2]
[423126244,1779870546000,-150.0,0.00013488,2]
[423126245,1779870546000,-150.0,0.00013488,2]
[423126247,1779870546000,-150.0,0.00013488,2]
[423126248,1779870546000,-150.0,0.00013488,2]
[423126249,1779870546000,-164.15608081,0.00013488,2]
[423126246,1779870546000,-150.0,0.00013488,2]
[423126253,1779870546000,-150.0,0.0001353,2]
[423126263,1779870546000,-2075.13897032,0.00013592,2]
[423126261,1779870546000,-164.15608081,0.00013578,2]
[423126251,1779870546000,-164.15608081,0.00013503,2]
[423126262,1779870546000,-6716.00044673,0.0001359,2]
[423126259,1779870546000,-164.15608081,0.00013563,2]
[423126258,1779870546000,-150.0,0.00013559,2]
[423126260,1779870546000,-150.0,0.00013573,2]
[423126257,1779870546000,-150.0,0.00013556,2]
[423126256,1779870546000,-164.15608081,0.00013548,2]
[423126254,1779870546000,-164.15608081,0.00013533,2]
[423126250,1779870546000,-150.0,0.00013488,2]
[423126252,1779870546000,-164.15608081,0.00013518,2]
[423126255,1779870546000,-150.0,0.00013543,2]
[423126272,1779870551000,-150.0,0.0001363,2]
[423126278,1779870551000,-164.15608081,0.00013669,2]
[423126279,1779870551000,-164.15608081,0.00013684,2]
[423126281,1779870551000,-164.15608081,0.000137,2]
[423126280,1779870551000,-150.0,0.00013692,2]
[423126277,1779870551000,-150.0,0.00013659,2]
[423126276,1779870551000,-150.0,0.00013659,2]
[423126275,1779870551000,-150.0,0.00013654,2]
[423126274,1779870551000,-164.15608081,0.00013654,2]
[423126283,1779870551000,-150.0,0.00013702,2]
[423126271,1779870551000,-164.15608081,0.00013624,2]
[423126267,1779870551000,-164.15608081,0.00013609,2]
[423126269,1779870551000,-18858.0,0.00013619,2]
[423126270,1779870551000,-150.0,0.00013624,2]
[423126268,1779870551000,-150.0,0.00013616,2]
[423126266,1779870551000,-150.0,0.00013599,2]
[423126264,1779870551000,-3258.86102968,0.00013592,2]
[423126265,1779870551000,-164.15608081,0.00013594,2]
[423126273,1779870551000,-164.15608081,0.00013639,2]
[423126282,1779870551000,-150.0,0.00013702,2]
[423126298,1779870551000,-150.0,0.00013787,2]
[423126285,1779870551000,-150.0,0.00013702,2]
[423126302,1779870551000,-150.0,0.00013821,2]
[423126303,1779870551000,-150.0,0.00013828,2]
[423126301,1779870551000,-164.15608081,0.00013821,2]
[423126304,1779870551000,-150.0,0.0001383,2]